fUST/lending_fUST_20241121
["ID","MTS","AMOUNT","RATE_DAILY","PERIOD"]
[342896673,1732198251040,-1166.68,0.00021917,2]
[342896675,1732198251050,-500.0,0.00021917,2]
[342896677,1732198251059,-196.97201257,0.00021917,2]
[342896679,1732198251068,-500.0,0.00021917,2]
[342896681,1732198251077,-773.84,0.00021917,2]
[342896683,1732198251087,-500.0,0.00021917,2]
[342896685,1732198251096,-271.95581902,0.00021917,2]
[342896687,1732198251106,-789.01,0.00021917,2]
[342896689,1732198251116,-500.0,0.00021917,2]
[342896691,1732198251125,-299.63949024,0.00021917,2]
[342896693,1732198251134,-1500.56,0.00021917,2]
[342896695,1732198251145,-500.0,0.00021917,2]
[342896697,1732198251154,-500.0,0.00021917,2]
[342896699,1732198251164,-500.0,0.00021917,2]
[342896701,1732198251174,-500.0,0.00021917,2]
[342896703,1732198251183,-4566.9,0.00021917,2]
[342896705,1732198251193,-500.0,0.00021917,2]
[342896707,1732198251207,-150.83580587,0.00021917,2]
[342896709,1732198251216,-552.45439065,0.00021917,2]
[342896711,1732198251226,-515.11547642,0.00021917,2]
[342896713,1732198251235,-500.0,0.00021917,2]
[342896715,1732198251245,-500.0,0.00021917,2]
[342896717,1732198251254,-1473.5,0.00021917,2]
[342896719,1732198251264,-500.0,0.00021917,2]
[342896721,1732198251273,-500.0,0.00021917,2]
[342896723,1732198251283,-500.0,0.00021917,2]
[342896725,1732198251293,-2375.24,0.00021917,2]
[342896727,1732198251303,-500.0,0.00021917,2]
[342896729,1732198251313,-502.15799418,0.00021917,2]
[342896731,1732198251323,-500.0,0.00021917,2]
[342896742,1732198251423,-500.0,0.00021917,2]
[342896744,1732198251434,-505.29673905,0.00021917,2]
[342896746,1732198251444,-500.0,0.00021917,2]
[342896748,1732198251456,-502.09145192,0.00021917,2]
[342896750,1732198251468,-503.3732232,0.00021917,2]
[342896752,1732198251478,-608.08,0.00021917,2]
[342896754,1732198251488,-500.0,0.00021917,2]
[342896756,1732198251497,-717.25,0.00021917,2]
[342896758,1732198251509,-500.0,0.00021917,2]
[342896760,1732198251519,-500.0,0.00021917,2]
[342896762,1732198251528,-1658.18,0.00021917,2]
[342896764,1732198251539,-500.0,0.00021917,2]
[342896766,1732198251548,-500.0,0.00021917,2]
[342896768,1732198251558,-37043.13,0.00021917,2]
[342896770,1732198251567,-500.0,0.00021917,2]
[342896772,1732198251577,-500.0,0.00021917,2]
[342896774,1732198251586,-975.56,0.00021917,2]
[342896776,1732198251595,-390.0,0.00021917,2]
[342896778,1732198251605,-398.76796227,0.00021917,2]
[342896780,1732198251615,-500.0,0.00021917,2]
[342896782,1732198251624,-566.57910343,0.00021917,2]
[342896784,1732198251633,-500.0,0.00021917,2]
[342896786,1732198251643,-500.0,0.00021917,2]
[342896788,1732198251652,-500.0,0.00021917,2]
[342896790,1732198251662,-559.63,0.00021917,2]
[342896792,1732198251671,-500.0,0.00021917,2]
[342896794,1732198251680,-530.57,0.00021917,2]
[342896796,1732198251690,-500.0,0.00021917,2]
[342896798,1732198251701,-500.0,0.00021917,2]
[342896800,1732198251710,-917.28,0.00021917,2]
[342896802,1732198251720,-500.0,0.00021917,2]
[342896804,1732198251729,-615.71589109,0.00021917,2]
[342896806,1732198251739,-500.0,0.00021917,2]
[342896808,1732198251749,-500.0,0.00021917,2]
[342896810,1732198251758,-1579.45,0.00021917,2]
[342896812,1732198251767,-501.356347,0.00021917,2]
[342896814,1732198251777,-856.49,0.00021917,2]
[342896816,1732198251787,-8068.57,0.00021917,2]
[342896818,1732198251796,-500.0,0.00021917,2]
[342896820,1732198251805,-235.23227265,0.00021917,2]
[342896822,1732198251814,-500.0,0.00021917,2]
[342896824,1732198251823,-370.96666188,0.00021917,2]
[342896826,1732198251833,-500.0,0.00021917,2]
[342896828,1732198251842,-500.0,0.00021917,2]
[342896830,1732198251852,-500.0,0.00021917,2]
[342896832,1732198251862,-500.0,0.00021917,2]
[342896834,1732198251871,-500.0,0.00021917,2]
[342896836,1732198251881,-500.0,0.00021917,2]
[342896838,1732198251891,-500.0,0.00021917,2]
[342896839,1732198251901,-500.0,0.00021917,2]
[342896840,1732198251910,-611.82947989,0.00021917,2]
[342896841,1732198251920,-687.07,0.00021917,2]
[342896842,1732198251929,-2221.95,0.00021917,2]
[342896843,1732198251939,-6419.39,0.00021917,2]
[342896844,1732198251950,-533.3427627,0.00021917,2]
[342896845,1732198251960,-574.56,0.00021917,2]
[342896846,1732198251969,-500.0,0.00021917,2]
[342896849,1732198251979,-500.0,0.00021917,2]
[342896851,1732198251988,-536.92574425,0.00021917,2]
[342896852,1732198251998,-500.0,0.00021917,2]
[342896855,1732198252008,-500.0,0.00021917,2]
[342896857,1732198252018,-500.0,0.00021917,2]
[342896859,1732198252027,-675.79,0.00021917,2]
[342896861,1732198252037,-500.0,0.00021917,2]
[342896863,1732198252046,-500.0,0.00021917,2]
[342896865,1732198252055,-891.56,0.00021917,2]
[342896867,1732198252065,-1578.64,0.00021917,2]
[342896869,1732198252074,-500.0,0.00021917,2]
[342896871,1732198252084,-500.0,0.00021917,2]
[342896873,1732198252093,-500.0,0.00021917,2]
[342896876,1732198252112,-506.13677867,0.00021917,2]
[342896878,1732198252129,-267.19885808,0.00021917,2]
[342896881,1732198252146,-512.17545571,0.00021917,2]
[342896884,1732198252165,-902.26,0.00021917,2]
[342896887,1732198252183,-300.0,0.00021917,2]
[342896890,1732198252202,-300.0,0.00021917,2]
[342896891,1732198252221,-3429.55,0.00021917,2]
[342896892,1732198252236,-500.0,0.00021917,2]
[342896893,1732198252251,-830.75,0.00021917,2]
[342896894,1732198252268,-515.0,0.00021917,2]
[342896895,1732198252286,-155.363401,0.00021917,2]
[342896896,1732198252306,-500.0,0.00021917,2]
[342896897,1732198252319,-500.0,0.00021917,2]
[342896898,1732198252334,-1411.57,0.00021917,2]
[342896899,1732198252351,-645.61,0.00021917,2]
[342896900,1732198252364,-500.0,0.00021917,2]
[342896901,1732198252380,-500.0,0.00021917,2]
[342896902,1732198252393,-500.0,0.00021917,2]
[342896903,1732198252408,-597.81,0.00021917,2]
[342896904,1732198252423,-500.0,0.00021917,2]
[342896905,1732198252437,-500.0,0.00021917,2]
[342896906,1732198252456,-500.0,0.00021917,2]
[342896907,1732198252473,-507.72612238,0.00021917,2]
[342896908,1732198252487,-573.78,0.00021917,2]
[342896909,1732198252502,-486.65555914,0.00021917,2]
[342896910,1732198252516,-500.0,0.00021917,2]
[342896911,1732198252532,-273.34561872,0.00021917,2]
[342896912,1732198252547,-551.34,0.00021917,2]
[342896913,1732198252562,-500.0,0.00021917,2]
[342896914,1732198252577,-1397.21,0.00021917,2]
[342896916,1732198252591,-500.0,0.00021917,2]
[342896919,1732198252606,-532.19625229,0.00021917,2]
[342896920,1732198252620,-1000.0,0.00021918,2]
[342896921,1732198252634,-500.0,0.00021918,2]
[342896923,1732198252648,-3000.0,0.0002192,2]
[342896926,1732198252662,-1000.0,0.00021923,2]
[342896928,1732198252676,-3000.0,0.0002193,2]
[342896930,1732198252691,-3000.0,0.0002194,2]
[342896933,1732198252708,-3000.0,0.0002195,2]
[342896934,1732198252723,-3000.0,0.0002196,2]
[342896935,1732198252737,-1000.0,0.0002196,2]
[342896936,1732198252752,-1000.0,0.00021969,2]
[342896937,1732198252767,-3000.0,0.0002197,2]
[342896938,1732198252781,-1000.0,0.0002197,2]
[342896939,1732198252796,-1000.0,0.0002197,2]
[342896941,1732198252810,-500.0,0.00021973,2]
[342896943,1732198252825,-500.0,0.00021973,2]
[342896946,1732198252839,-3000.0,0.0002198,2]
[342896948,1732198252854,-3000.0,0.0002199,2]
[342896951,1732198252868,-593.03073051,0.00022,2]
[342896953,1732198252882,-3806.0,0.00022,2]
[342896956,1732198252898,-260288.93562662,0.00022,30]
[342897044,1732198253708,-1121.80873995,0.0001991,2]
[342898555,1732198495164,1000.0,0.00026,60]
[342898556,1732198496299,1000.0,0.00026,60]
[342898557,1732198497258,1000.0,0.00026,60]
[342898558,1732198497975,1000.0,0.00026,60]
[342898559,1732198499045,1000.0,0.00026,60]
[342898689,1732199432051,-240.542979,0.00013973,2]
[342898691,1732199432062,-160.0,0.00017,2]
[342898694,1732199432073,-426.66411523,0.0001867,2]
[342898696,1732199432083,-560.88950441,0.0001877,2]
[342898698,1732199432095,-331.5446546,0.0001877,2]
[342898999,1732199435354,-159.57665039,0.0001877,2]
[342899002,1732199435364,-227.15752991,0.0001889,2]
[342899005,1732199435376,-772.84247009,0.0001889,2]
[342899007,1732199435386,-171.616229,0.00019178,2]
[342899009,1732199435395,-426.66411523,0.0001928,2]
[342899011,1732199435405,-300.0,0.0001939,2]
[342899013,1732199435419,-2476.0,0.0001939,2]
[342899015,1732199435430,-24900.0,0.00019391,2]
[342899017,1732199435440,-14006.6966226,0.0001999,2]
[342899019,1732199435449,-419.74058265,0.0001999,2]
[342899021,1732199435459,-240.542979,0.00020447,2]
[342899023,1732199435468,-200.21450169,0.000208,2]
[342899025,1732199435478,-3000.0,0.00020865,2]
[342899043,1732199435688,-420.0,0.00021127,2]
[342899044,1732199435698,-1136.87253028,0.00021398,2]
[342899045,1732199435709,-1106.0,0.00021498,2]
[342899046,1732199435719,-530.0,0.00021498,2]
[342899047,1732199435729,-2382.0,0.00021498,2]
[342899048,1732199435739,-310.0000012,0.00021515,2]
[342899049,1732199435751,-330.0,0.0002161,2]
[342899050,1732199435765,-2119.42004256,0.000218,2]
[342899051,1732199435775,-544.476,0.00021801,2]
[342899052,1732199435785,-1000.0,0.00021817,2]
[342899053,1732199435797,-288.57,0.0002189,3]
[342899054,1732199435808,-865.76,0.0002189,3]
[342899055,1732199435819,-421.6480866,0.00021899,2]
[342899056,1732199435829,-556.80751015,0.00021899,2]
[342899057,1732199435839,-329.26965821,0.00021899,2]
[342899058,1732199435850,-500.0,0.00021899,2]
[342899059,1732199435860,-1719.48917243,0.000219,2]
[342899060,1732199435869,-250000.0,0.000219,2]
[342899061,1732199435879,-210.95060613,0.00021916,2]
[342899062,1732199435888,-202.20785407,0.00021916,2]
[342899063,1732199435898,-187.47124911,0.00021916,2]
[342899064,1732199435907,-501.12103895,0.00021917,2]
[342899065,1732199435921,-500.0,0.00021917,2]
[342899066,1732199435931,-459.42169448,0.00021917,2]
[342899067,1732199435940,-500.0,0.00021917,2]
[342899068,1732199435950,-500.0,0.00021917,2]
[342899069,1732199435959,-500.0,0.00021917,2]
[342899070,1732199435968,-513.01113206,0.00021917,2]
[342899071,1732199435978,-526.99,0.00021917,2]
[342899072,1732199435987,-500.0,0.00021917,2]
[342899073,1732199435997,-500.0,0.00021917,2]
[342899074,1732199436006,-500.0,0.00021917,2]
[342899075,1732199436015,-647.5183215,0.00021917,2]
[342899076,1732199436024,-500.0,0.00021917,2]
[342899077,1732199436033,-649.42,0.00021917,2]
[342899079,1732199436043,-500.0,0.00021917,2]
[342899081,1732199436052,-500.0,0.00021917,2]
[342899083,1732199436061,-500.0,0.00021917,2]
[342899085,1732199436070,-1060.12,0.00021917,2]
[342899087,1732199436080,-500.0,0.00021917,2]
[342899088,1732199436089,-611.13,0.00021917,2]
[342899091,1732199436099,-500.0,0.00021917,2]
[342899092,1732199436109,-500.0,0.00021917,2]
[342899094,1732199436119,-500.0,0.00021917,2]
[342899096,1732199436128,-435.10362359,0.00021917,2]
[342899098,1732199436137,-500.0,0.00021917,2]
[342899100,1732199436148,-500.0,0.00021917,2]
[342899102,1732199436158,-500.0,0.00021917,2]
[342899104,1732199436173,-500.0,0.00021917,2]
[342899107,1732199436183,-500.0,0.00021917,2]
[342899109,1732199436193,-500.0,0.00021917,2]
[342899111,1732199436203,-500.0,0.00021917,2]
[342899113,1732199436213,-365.31741136,0.00021917,2]
[342899115,1732199436223,-502.6373402,0.00021917,2]
[342899117,1732199436232,-972.78,0.00021917,2]
[342899119,1732199436242,-500.0,0.00021917,2]
[342899121,1732199436251,-500.0,0.00021917,2]
[342899123,1732199436262,-500.0,0.00021917,2]
[342899124,1732199436272,-500.0,0.00021917,2]
[342899126,1732199436281,-510.11357358,0.00021917,2]
[342899128,1732199436292,-500.0,0.00021917,2]
[342899130,1732199436303,-200.0,0.00021917,2]
[342899132,1732199436313,-500.0,0.00021917,2]
[342899134,1732199436323,-668.96,0.00021917,2]
[342899136,1732199436333,-503.25240077,0.00021917,2]
[342899138,1732199436343,-500.0,0.00021917,2]
[342899140,1732199436352,-500.0,0.00021917,2]
[342899142,1732199436362,-500.0,0.00021917,2]
[342899143,1732199436371,-500.0,0.00021917,2]
[342899146,1732199436382,-500.0,0.00021917,2]
[342899147,1732199436391,-529.03,0.00021917,2]
[342899149,1732199436401,-500.0,0.00021917,2]
[342899151,1732199436411,-500.0,0.00021917,2]
[342899153,1732199436425,-500.0,0.00021917,2]
[342899155,1732199436435,-500.0,0.00021917,2]
[342899157,1732199436445,-503.85711461,0.00021917,2]
[342899159,1732199436454,-500.0,0.00021917,2]
[342899161,1732199436464,-904.64,0.00021917,2]
[342899163,1732199436475,-1012.99,0.00021917,2]
[342899165,1732199436484,-510.17195405,0.00021917,2]
[342899167,1732199436494,-500.0,0.00021917,2]
[342899169,1732199436504,-500.0,0.00021917,2]
[342899171,1732199436514,-500.0,0.00021917,2]
[342899173,1732199436523,-500.0,0.00021917,2]
[342899175,1732199436534,-500.0,0.00021917,2]
[342899177,1732199436544,-500.0,0.00021917,2]
[342899179,1732199436554,-500.0,0.00021917,2]
[342899181,1732199436564,-500.0,0.00021917,2]
[342899183,1732199436573,-500.0,0.00021917,2]
[342899185,1732199436583,-500.0,0.00021917,2]
[342899187,1732199436592,-358.79479165,0.00021917,2]
[342899189,1732199436603,-500.0,0.00021917,2]
[342899191,1732199436613,-558.33,0.00021917,2]
[342899193,1732199436623,-500.0,0.00021917,2]
[342899195,1732199436633,-500.0,0.00021917,2]
[342899197,1732199436642,-563.47,0.00021917,2]
[342899199,1732199436653,-500.0,0.00021917,2]
[342899200,1732199436664,-500.0,0.00021917,2]
[342899202,1732199436679,-563.73274128,0.00021917,2]
[342899205,1732199436690,-500.0,0.00021917,2]
[342899206,1732199436700,-500.0,0.00021917,2]
[342899208,1732199436711,-500.0,0.00021917,2]
[342899210,1732199436722,-500.0,0.00021917,2]
[342899212,1732199436733,-508.49431534,0.00021917,2]
[342899214,1732199436744,-500.0,0.00021917,2]
[342899216,1732199436760,-331.3543298,0.00021917,2]
[342899218,1732199436772,-777.44,0.00021917,2]
[342899220,1732199436783,-504.17475127,0.00021917,2]
[342899223,1732199436795,-1343.11,0.00021917,2]
[342899224,1732199436807,-500.0,0.00021917,2]
[342899226,1732199436818,-704.68,0.00021917,2]
[342899228,1732199436829,-500.0,0.00021917,2]
[342899230,1732199436840,-500.0,0.00021917,2]
[342899232,1732199436849,-500.0,0.00021917,2]
[342899234,1732199436859,-500.0,0.00021917,2]
[342899236,1732199436872,-648.49535488,0.00021917,2]
[342899238,1732199436883,-500.0,0.00021917,2]
[342899241,1732199436894,-500.0,0.00021917,2]
[342899242,1732199436903,-500.0,0.00021917,2]
[342899244,1732199436914,-500.0,0.00021917,2]
[342899246,1732199436929,-500.0,0.00021917,2]
[342899249,1732199436940,-500.0,0.00021917,2]
[342899250,1732199436950,-213.67005825,0.00021917,2]
[342899253,1732199436960,-500.0,0.00021917,2]
[342899255,1732199436971,-1498.12,0.00021917,2]
[342899257,1732199436980,-500.0,0.00021917,2]
[342899259,1732199436990,-543.45,0.00021917,2]
[342899260,1732199437000,-500.0,0.00021917,2]
[342899262,1732199437009,-500.0,0.00021917,2]
[342899264,1732199437018,-500.0,0.00021917,2]
[342899266,1732199437028,-901.99,0.00021917,2]
[342899268,1732199437038,-500.0,0.00021917,2]
[342899271,1732199437048,-217.19980389,0.00021917,2]
[342899273,1732199437057,-500.0,0.00021917,2]
[342899274,1732199437067,-500.0,0.00021917,2]
[342899276,1732199437076,-500.0,0.00021917,2]
[342899278,1732199437086,-500.0,0.00021917,2]
[342899280,1732199437096,-506.31635865,0.00021917,2]
[342899282,1732199437105,-500.0,0.00021917,2]
[342899284,1732199437114,-500.0,0.00021917,2]
[342899286,1732199437124,-752.41,0.00021917,2]
[342899288,1732199437134,-500.0,0.00021917,2]
[342899290,1732199437144,-500.0,0.00021917,2]
[342899292,1732199437153,-500.0,0.00021917,2]
[342899294,1732199437163,-500.0,0.00021917,2]
[342899296,1732199437179,-500.0,0.00021917,2]
[342899298,1732199437189,-500.0,0.00021917,2]
[342899300,1732199437199,-1536.49,0.00021917,2]
[342899302,1732199437210,-748.6,0.00021917,2]
[342899304,1732199437220,-1013.68,0.00021917,2]
[342899306,1732199437230,-1364.37,0.00021917,2]
[342899308,1732199437241,-500.0,0.00021917,2]
[342899310,1732199437252,-516.64,0.00021917,2]
[342899312,1732199437262,-500.0,0.00021917,2]
[342899314,1732199437273,-500.0,0.00021917,2]
[342899316,1732199437283,-500.0,0.00021917,2]
[342899318,1732199437296,-500.0,0.00021917,2]
[342899320,1732199437307,-526.1,0.00021917,2]
[342899322,1732199437316,-500.0,0.00021917,2]
[342899324,1732199437326,-500.0,0.00021917,2]
[342899326,1732199437335,-500.0,0.00021917,2]
[342899328,1732199437344,-756.13,0.00021917,2]
[342899330,1732199437354,-848.25,0.00021917,2]
[342899332,1732199437363,-500.0,0.00021917,2]
[342899334,1732199437373,-508.46,0.00021917,2]
[342899336,1732199437382,-290.00838981,0.00021917,2]
[342899338,1732199437391,-500.0,0.00021917,2]
[342899340,1732199437401,-500.0,0.00021917,2]
[342899342,1732199437411,-500.0,0.00021917,2]
[342899344,1732199437423,-1458.87,0.00021917,2]
[342899346,1732199437433,-507.17475758,0.00021917,2]
[342899349,1732199437442,-503.88044085,0.00021917,2]
[342899352,1732199437452,-500.0,0.00021917,2]
[342899354,1732199437462,-854.41,0.00021917,2]
[342899357,1732199437472,-1739.83,0.00021917,2]
[342899359,1732199437482,-749.37,0.00021917,2]
[342899361,1732199437492,-500.0,0.00021917,2]
[342899363,1732199437501,-500.0,0.00021917,2]
[342899365,1732199437514,-500.0,0.00021917,2]
[342899367,1732199437524,-500.0,0.00021917,2]
[342899369,1732199437534,-175.33676513,0.00021917,2]
[342899372,1732199437544,-500.0,0.00021917,2]
[342899374,1732199437554,-300.35045941,0.00021917,2]
[342899376,1732199437564,-500.0,0.00021917,2]
[342899378,1732199437574,-572.9,0.00021917,2]
[342899380,1732199437584,-500.0,0.00021917,2]
[342899382,1732199437594,-500.0,0.00021917,2]
[342899384,1732199437604,-500.0,0.00021917,2]
[342899386,1732199437614,-501.28469647,0.00021917,2]
[342899388,1732199437624,-500.0,0.00021917,2]
[342899390,1732199437634,-509.55235097,0.00021917,2]
[342899392,1732199437643,-500.0,0.00021917,2]
[342899394,1732199437653,-500.0,0.00021917,2]
[342899396,1732199437663,-500.0,0.00021917,2]
[342899398,1732199437677,-500.0,0.00021917,2]
[342899400,1732199437687,-189.62131623,0.00021917,2]
[342899402,1732199437696,-820.81,0.00021917,2]
[342899404,1732199437707,-561.90159016,0.00021917,2]
[342899406,1732199437716,-549.88,0.00021917,2]
[342899408,1732199437727,-2004.43,0.00021917,2]
[342899410,1732199437737,-500.0,0.00021917,2]
[342899412,1732199437747,-500.0,0.00021917,2]
[342899414,1732199437761,-500.0,0.00021917,2]
[342899416,1732199437771,-741.19,0.00021917,2]
[342899418,1732199437781,-502.67646055,0.00021917,2]
[342899420,1732199437793,-500.0,0.00021917,2]
[342899422,1732199437802,-1574.01,0.00021917,2]
[342899423,1732199437812,-500.0,0.00021917,2]
[342899426,1732199437822,-500.0,0.00021917,2]
[342899427,1732199437832,-751.22,0.00021917,2]
[342899429,1732199437841,-598.99,0.00021917,2]
[342899432,1732199437851,-500.0,0.00021917,2]
[342899434,1732199437861,-618.71,0.00021917,2]
[342899436,1732199437871,-503.82244247,0.00021917,2]
[342899438,1732199437881,-1723.56,0.00021917,2]
[342899440,1732199437891,-500.0,0.00021917,2]
[342899442,1732199437901,-500.0,0.00021917,2]
[342899444,1732199437910,-843.0,0.00021917,2]
[342899446,1732199437923,-500.0,0.00021917,2]
[342899448,1732199437933,-500.0,0.00021917,2]
[342899450,1732199437942,-500.0,0.00021917,2]
[342899452,1732199437952,-500.0,0.00021917,2]
[342899454,1732199437962,-991.91,0.00021917,2]
[342899456,1732199437971,-500.0,0.00021917,2]
[342899458,1732199437981,-500.0,0.00021917,2]
[342899460,1732199437990,-500.0,0.00021917,2]
[342899461,1732199438000,-1538.57,0.00021917,2]
[342899464,1732199438010,-500.0,0.00021917,2]
[342899466,1732199438020,-500.0,0.00021917,2]
[342899468,1732199438030,-885.7,0.00021917,2]
[342899470,1732199438040,-159.32002076,0.00021917,2]
[342899472,1732199438049,-1384.98,0.00021917,2]
[342899474,1732199438059,-500.0,0.00021917,2]
[342899476,1732199438069,-500.0,0.00021917,2]
[342899478,1732199438078,-311.85900799,0.00021917,2]
[342899479,1732199438091,-500.0,0.00021917,2]
[342899481,1732199438100,-500.0,0.00021917,2]
[342899483,1732199438110,-746.8,0.00021917,2]
[342899485,1732199438120,-500.0,0.00021917,2]
[342899487,1732199438129,-509.51471657,0.00021917,2]
[342899489,1732199438140,-500.0,0.00021917,2]
[342899491,1732199438149,-540.19,0.00021917,2]
[342899494,1732199438159,-500.0,0.00021917,2]
[342899495,1732199438171,-606.04192967,0.00021917,2]
[342899497,1732199438180,-500.0,0.00021917,2]
[342899499,1732199438190,-708.04,0.00021917,2]
[342899501,1732199438200,-949.39,0.00021917,2]
[342899518,1732199438347,-500.0,0.00021917,2]
[342899520,1732199438357,-500.0,0.00021917,2]
[342899522,1732199438367,-532.63,0.00021917,2]
[342899524,1732199438377,-453.88219172,0.00021917,2]
[342899526,1732199438387,-250.51702517,0.00021917,2]
[342899528,1732199438398,-500.0,0.00021917,2]
[342899530,1732199438408,-500.0,0.00021917,2]
[342899532,1732199438420,-906.86,0.00021917,2]
[342899534,1732199438431,-500.0,0.00021917,2]
[342899536,1732199438441,-500.0,0.00021917,2]
[342899538,1732199438450,-500.0,0.00021917,2]
[342899540,1732199438460,-401.85796007,0.00021917,2]
[342899542,1732199438469,-1010.76,0.00021917,2]
[342899544,1732199438478,-500.0,0.00021917,2]
[342899546,1732199438488,-500.0,0.00021917,2]
[342899548,1732199438499,-1121.92,0.00021917,2]
[342899550,1732199438508,-500.0,0.00021917,2]
[342899552,1732199438519,-1025.92,0.00021917,2]
[342899554,1732199438529,-500.0,0.00021917,2]
[342899556,1732199438538,-500.0,0.00021917,2]
[342899558,1732199438547,-500.0,0.00021917,2]
[342899559,1732199438557,-726.61,0.00021917,2]
[342899560,1732199438566,-500.0,0.00021917,2]
[342899561,1732199438575,-819.59,0.00021917,2]
[342899562,1732199438584,-682.28,0.00021917,2]
[342899563,1732199438593,-1580.8,0.00021917,2]
[342899564,1732199438603,-500.0,0.00021917,2]
[342899565,1732199438613,-500.0,0.00021917,2]
[342899566,1732199438622,-500.0,0.00021917,2]
[342899567,1732199438632,-1337.5,0.00021917,2]
[342899569,1732199438641,-500.0,0.00021917,2]
[342899571,1732199438651,-500.0,0.00021917,2]
[342899573,1732199438660,-500.0,0.00021917,2]
[342899575,1732199438673,-544.63,0.00021917,2]
[342899577,1732199438682,-500.0,0.00021917,2]
[342899579,1732199438691,-500.0,0.00021917,2]
[342899581,1732199438702,-629.57,0.00021917,2]
[342899583,1732199438711,-1121.99,0.00021917,2]
[342899584,1732199438720,-500.0,0.00021917,2]
[342899587,1732199438729,-1412.1,0.00021917,2]
[342899588,1732199438738,-500.0,0.00021917,2]
[342899591,1732199438748,-1775.69,0.00021917,2]
[342899593,1732199438763,-406.65404884,0.00021917,2]
[342899595,1732199438772,-500.0,0.00021917,2]
[342899597,1732199438782,-520.34,0.00021917,2]
[342899599,1732199438791,-500.0,0.00021917,2]
[342899601,1732199438804,-500.0,0.00021917,2]
[342899603,1732199438814,-554.42,0.00021917,2]
[342899605,1732199438824,-500.0,0.00021917,2]
[342899607,1732199438833,-500.0,0.00021917,2]
[342899609,1732199438843,-500.0,0.00021917,2]
[342899611,1732199438853,-582.74,0.00021917,2]
[342899613,1732199438863,-1478.08,0.00021917,2]
[342899615,1732199438872,-11758.96,0.00021917,2]
[342899617,1732199438882,-1295.04,0.00021917,2]
[342899619,1732199438891,-574.80481329,0.00021917,2]
[342899621,1732199438901,-1118.07,0.00021917,2]
[342899623,1732199438910,-500.0,0.00021917,2]
[342899625,1732199438923,-500.0,0.00021917,2]
[342899627,1732199438933,-876.97,0.00021917,2]
[342899629,1732199438942,-500.0,0.00021917,2]
[342899631,1732199438951,-764.67,0.00021917,2]
[342899633,1732199438960,-13746.89,0.00021917,2]
[342899635,1732199438970,-500.0,0.00021917,2]
[342899637,1732199438980,-500.0,0.00021917,2]
[342899639,1732199438990,-500.0,0.00021917,2]
[342899641,1732199438999,-838.63,0.00021917,2]
[342899643,1732199439009,-500.0,0.00021917,2]
[342899645,1732199439019,-500.0,0.00021917,2]
[342899647,1732199439029,-649.68340517,0.00021917,2]
[342899649,1732199439038,-526.86,0.00021917,2]
[342899651,1732199439048,-4194.26,0.00021917,2]
[342899653,1732199439059,-500.0,0.00021917,2]
[342899655,1732199439068,-501.34,0.00021917,2]
[342899657,1732199439078,-879.06,0.00021917,2]
[342899659,1732199439087,-500.0,0.00021917,2]
[342899661,1732199439097,-500.0,0.00021917,2]